lending/lending_fUSD_20250808
["ID","MTS","AMOUNT","RATE_DAILY","PERIOD"]
[377977125,1754643041728,-634.94,0.00018773,2]
[377977126,1754643041737,-400.0,0.00018773,2]
[377977127,1754643041749,-400.0,0.00018773,2]
[377977128,1754643041759,-400.0,0.00018773,2]
[377977129,1754643041770,-404.51,0.00018773,2]
[377977130,1754643041779,-1204.57,0.00018773,2]
[377977131,1754643041788,-828.73,0.00018773,2]
[377977132,1754643041798,-400.0,0.00018773,2]
[377977133,1754643041807,-1171.07,0.00018773,2]
[377977134,1754643041817,-401.64130579,0.00018773,2]
[377977135,1754643041827,-400.0,0.00018773,2]
[377977136,1754643041836,-558.04,0.00018773,2]
[377977137,1754643041845,-400.0,0.00018773,2]
[377977138,1754643041854,-400.0,0.00018773,2]
[377977139,1754643041864,-400.0,0.00018773,2]
[377977140,1754643041873,-400.0,0.00018773,2]
[377977141,1754643041882,-650.35,0.00018773,2]
[377977142,1754643041891,-400.0,0.00018773,2]
[377977143,1754643041902,-400.0,0.00018773,2]
[377977144,1754643041911,-400.0,0.00018773,2]
[377977145,1754643041921,-521.83,0.00018773,2]
[377977146,1754643041930,-927.38,0.00018773,2]
[377977147,1754643041939,-400.0,0.00018773,2]
[377977148,1754643041949,-514.97,0.00018773,2]
[377977149,1754643041958,-325.27926014,0.00018773,2]
[377977150,1754643041967,-400.0,0.00018773,2]
[377977151,1754643041976,-952.63,0.00018773,2]
[377977152,1754643041984,-1244.95,0.00018773,2]
[377977153,1754643041993,-400.0,0.00018773,2]
[377977154,1754643042002,-400.0,0.00018773,2]
[377977155,1754643042011,-400.0,0.00018773,2]
[377977156,1754643042020,-397.38116193,0.00018773,2]
[377977157,1754643042029,-1065.84,0.00018773,2]
[377977158,1754643042039,-449.96,0.00018773,2]
[377977159,1754643042048,-400.0,0.00018773,2]
[377977160,1754643042058,-400.0,0.00018773,2]
[377977161,1754643042067,-400.0,0.00018773,2]
[377977162,1754643042076,-400.0,0.00018773,2]
[377977163,1754643042085,-400.0,0.00018773,2]
[377977164,1754643042094,-400.0,0.00018773,2]
[377977165,1754643042103,-400.0,0.00018773,2]
[377977166,1754643042113,-1398.38,0.00018773,2]
[377977167,1754643042122,-423.83,0.00018773,2]
[377977168,1754643042131,-400.0,0.00018773,2]
[377977169,1754643042140,-400.0,0.00018773,2]
[377977170,1754643042149,-400.48980842,0.00018773,2]
[377977171,1754643042159,-400.0,0.00018773,2]
[377977172,1754643042169,-400.0,0.00018773,2]
[377977173,1754643042180,-400.0,0.00018773,2]
[377977174,1754643042189,-400.0,0.00018773,2]
[377977175,1754643042198,-400.0,0.00018773,2]
[377977176,1754643042207,-491.14,0.00018773,2]
[377977177,1754643042217,-1905.37,0.00018773,2]
[377977178,1754643042226,-420.48,0.00018773,2]
[377977179,1754643042235,-400.0,0.00018773,2]
[377977180,1754643042244,-400.0,0.00018773,2]
[377977181,1754643042253,-764.97,0.00018773,2]
[377977182,1754643042262,-831.18,0.00018773,2]
[377977183,1754643042271,-400.0,0.00018773,2]
[377977184,1754643042280,-1087.67,0.00018773,2]
[377977185,1754643042289,-400.0,0.00018773,2]
[377977186,1754643042298,-400.0,0.00018773,2]
[377977187,1754643042306,-689.92,0.00018773,2]
[377977188,1754643042315,-401.05480556,0.00018773,2]
[377977189,1754643042324,-400.0,0.00018773,2]
[377977190,1754643042333,-985.1,0.00018773,2]
[377977191,1754643042342,-400.81155394,0.00018773,2]
[377977192,1754643042351,-835.97,0.00018773,2]
[377977193,1754643042360,-400.0,0.00018773,2]
[377977195,1754643042370,-400.0,0.00018773,2]
[377977197,1754643042379,-400.0,0.00018773,2]
[377977199,1754643042388,-1099.03,0.00018773,2]
[377977201,1754643042397,-400.0,0.00018773,2]
[377977203,1754643042407,-757.36,0.00018773,2]
[377977205,1754643042416,-421.75,0.00018773,2]
[377977206,1754643042428,-401.0667245,0.00018773,2]
[377977207,1754643042437,-400.0,0.00018773,2]
[377977208,1754643042446,-1281.74,0.00018773,2]
[377977209,1754643042455,-723.99,0.00018773,2]
[377977210,1754643042464,-500.0,0.00018773,2]
[377977211,1754643042473,-1173.56,0.00018773,2]
[377977212,1754643042483,-400.0,0.00018773,2]
[377977213,1754643042493,-400.0,0.00018773,2]
[377977214,1754643042502,-400.0,0.00018773,2]
[377977215,1754643042511,-403.05900184,0.00018773,2]
[377977216,1754643042520,-400.0,0.00018773,2]
[377977217,1754643042529,-1425.86,0.00018773,2]
[377977218,1754643042538,-400.0,0.00018773,2]
[377977219,1754643042547,-471.61,0.00018773,2]
[377977220,1754643042556,-400.0,0.00018773,2]
[377977221,1754643042565,-694.64,0.00018773,2]
[377977222,1754643042574,-402.29337468,0.00018773,2]
[377977223,1754643042584,-430.87,0.00018773,2]
[377977224,1754643042593,-429.31,0.00018773,2]
[377977225,1754643042602,-401.19407817,0.00018773,2]
[377977226,1754643042611,-400.0,0.00018773,2]
[377977227,1754643042620,-489.45676074,0.00018773,2]
[377977228,1754643042630,-400.0,0.00018773,2]
[377977229,1754643042640,-400.0,0.00018773,2]
[377977230,1754643042650,-657.14,0.00018773,2]
[377977231,1754643042660,-400.0,0.00018773,2]
[377977232,1754643042674,-593.24,0.00018773,2]
[377977233,1754643042684,-400.0,0.00018773,2]
[377977234,1754643042693,-400.0,0.00018773,2]
[377977235,1754643042703,-891.37,0.00018773,2]
[377977236,1754643042712,-400.0,0.00018773,2]
[377977237,1754643042722,-577.2,0.00018773,2]
[377977238,1754643042731,-400.0,0.00018773,2]
[377977239,1754643042740,-614.33,0.00018773,2]
[377977240,1754643042750,-696.69,0.00018773,2]
[377977241,1754643042760,-400.0,0.00018773,2]
[377977242,1754643042769,-400.0,0.00018773,2]
[377977243,1754643042779,-331.16112963,0.00018773,2]
[377977244,1754643042788,-673.74,0.00018773,2]
[377977245,1754643042797,-401.2595348,0.00018773,2]
[377977246,1754643042806,-223.97891835,0.00018773,2]
[377977247,1754643042815,-473.53,0.00018773,2]
[377977248,1754643042823,-400.0,0.00018773,2]
[377977249,1754643042833,-400.0,0.00018773,2]
[377977250,1754643042841,-1082.82,0.00018773,2]
[377977251,1754643042850,-400.0,0.00018773,2]
[377977252,1754643042859,-400.0,0.00018773,2]
[377977253,1754643042868,-400.0,0.00018773,2]
[377977254,1754643042877,-400.0,0.00018773,2]
[377977255,1754643042886,-791.76,0.00018773,2]
[377977256,1754643042895,-958.09,0.00018773,2]
[377977257,1754643042904,-1887.02,0.00018773,2]
[377977258,1754643042913,-749.1,0.00018773,2]
[377977259,1754643042923,-667.42,0.00018773,2]
[377977260,1754643042932,-400.0,0.00018773,2]
[377977261,1754643042942,-1023.08,0.00018773,2]
[377977262,1754643042951,-400.0,0.00018773,2]
[377977263,1754643042959,-767.29,0.00018773,2]
[377977264,1754643042968,-400.0,0.00018773,2]
[377977265,1754643042978,-864.07,0.00018773,2]
[377977266,1754643042988,-400.0,0.00018773,2]
[377977267,1754643042998,-400.0,0.00018773,2]
[377977268,1754643043007,-400.0,0.00018773,2]
[377977269,1754643043015,-400.0,0.00018773,2]
[377977270,1754643043025,-686.04,0.00018773,2]
[377977271,1754643043034,-727.22,0.00018773,2]
[377977272,1754643043043,-400.0,0.00018773,2]
[377977273,1754643043052,-423.69,0.00018773,2]
[377977274,1754643043061,-400.0,0.00018773,2]
[377977275,1754643043070,-400.0,0.00018773,2]
[377977277,1754643043080,-400.0,0.00018773,2]
[377977278,1754643043090,-776.12,0.00018773,2]
[377977279,1754643043099,-400.0,0.00018773,2]
[377977281,1754643043108,-400.0,0.00018773,2]
[377977282,1754643043117,-940.74,0.00018773,2]
[377977283,1754643043127,-400.0,0.00018773,2]
[377977284,1754643043135,-548.26,0.00018773,2]
[377977285,1754643043144,-400.0,0.00018773,2]
[377977286,1754643043154,-400.0,0.00018773,2]
[377977287,1754643043163,-400.0,0.00018773,2]
[377977288,1754643043395,-400.0,0.00018773,2]
[377977289,1754643043405,-1044.27,0.00018773,2]
[377977290,1754643043414,-400.0,0.00018773,2]
[377977291,1754643043426,-644.29,0.00018773,2]
[377977292,1754643043435,-626.88,0.00018773,2]
[377977293,1754643043445,-821.16,0.00018773,2]
[377977294,1754643043454,-400.0,0.00018773,2]
[377977295,1754643043464,-754.94,0.00018773,2]
[377977296,1754643043473,-401.77228616,0.00018773,2]
[377977297,1754643043482,-400.0,0.00018773,2]
[377977298,1754643043492,-569.59,0.00018773,2]
[377977299,1754643043501,-400.0,0.00018773,2]
[377977300,1754643043510,-401.18994229,0.00018773,2]
[377977301,1754643043519,-1628.44,0.00018773,2]
[377977302,1754643043528,-524.16,0.00018773,2]
[377977303,1754643043537,-400.0,0.00018773,2]
[377977304,1754643043547,-400.0,0.00018773,2]
[377977305,1754643043556,-840.37,0.00018773,2]
[377977306,1754643043566,-374.57495206,0.00018773,2]
[377977307,1754643043576,-400.0,0.00018773,2]
[377977308,1754643043585,-400.0,0.00018773,2]
[377977309,1754643043594,-400.0,0.00018773,2]
[377977310,1754643043604,-920.86,0.00018773,2]
[377977311,1754643043613,-400.0,0.00018773,2]
[377977312,1754643043623,-400.67676233,0.00018773,2]
[377977313,1754643043632,-306.15376324,0.00018773,2]
[377977314,1754643043641,-1319.4,0.00018773,2]
[377977315,1754643043651,-400.0,0.00018773,2]
[377977316,1754643043661,-400.49262054,0.00018773,2]
[377977317,1754643043676,-400.0,0.00018773,2]
[377977318,1754643043686,-672.68,0.00018773,2]
[377977319,1754643043695,-2490.65,0.00018773,2]
[377977320,1754643043706,-400.0,0.00018773,2]
[377977321,1754643043716,-400.0,0.00018773,2]
[377977322,1754643043726,-1338.67,0.00018773,2]
[377977323,1754643043735,-400.0,0.00018773,2]
[377977324,1754643043747,-400.0,0.00018773,2]
[377977325,1754643043758,-400.0,0.00018773,2]
[377977326,1754643043767,-400.0,0.00018773,2]
[377977327,1754643043776,-400.0,0.00018773,2]
[377977328,1754643043786,-400.0,0.00018773,2]
[377977329,1754643043795,-751.72,0.00018773,2]
[377977330,1754643043805,-500.0,0.00018773,2]
[377977331,1754643043814,-400.0,0.00018773,2]
[377977332,1754643043823,-1537.48,0.00018773,2]
[377977333,1754643043833,-400.0,0.00018773,2]
[377977334,1754643043843,-394.63536898,0.00018773,2]
[377977335,1754643043853,-483.76,0.00018773,2]
[377977336,1754643043862,-491.18,0.00018773,2]
[377977337,1754643043872,-301.02896685,0.00018773,2]
[377977338,1754643043881,-400.0,0.00018773,2]
[377977339,1754643043890,-400.0,0.00018773,2]
[377977340,1754643043899,-400.0,0.00018773,2]
[377977341,1754643043909,-473.4,0.00018773,2]
[377977342,1754643043919,-1358.6,0.00018773,2]
[377977343,1754643043928,-400.0,0.00018773,2]
[377977344,1754643043938,-400.0,0.00018773,2]
[377977345,1754643043947,-578.5,0.00018773,2]
[377977346,1754643043956,-400.0,0.00018773,2]
[377977347,1754643043966,-929.97,0.00018773,2]
[377977348,1754643043975,-500.0,0.00018773,2]
[377977349,1754643043985,-569.91,0.00018773,2]
[377977350,1754643043994,-473.9,0.00018773,2]
[377977351,1754643044004,-400.0,0.00018773,2]
[377977352,1754643044014,-400.0,0.00018773,2]
[377977353,1754643044023,-400.0,0.00018773,2]
[377977354,1754643044033,-1560.41,0.00018773,2]
[377977355,1754643044043,-400.0,0.00018773,2]
[377977356,1754643044053,-802.9,0.00018773,2]
[377977357,1754643044062,-450.52,0.00018773,2]
[377977358,1754643044072,-336.28282294,0.00018773,2]
[377977359,1754643044082,-1306.78,0.00018773,2]
[377977360,1754643044091,-829.01,0.00018773,2]
[377977361,1754643044100,-400.0,0.00018773,2]
[377977362,1754643044110,-732.64,0.00018773,2]
[377977363,1754643044120,-877.42,0.00018773,2]
[377977364,1754643044129,-408.8868818,0.00018773,2]
[377977365,1754643044139,-400.0,0.00018773,2]
[377977366,1754643044149,-801.22,0.00018773,2]
[377977367,1754643044159,-400.0,0.00018773,2]
[377977368,1754643044169,-400.0,0.00018773,2]
[377977369,1754643044180,-473.55,0.00018773,2]
[377977370,1754643044190,-400.0,0.00018773,2]
[377977371,1754643044199,-736.47,0.00018773,2]
[377977372,1754643044208,-400.0,0.00018773,2]
[377977373,1754643044218,-809.27,0.00018773,2]
[377977374,1754643044227,-400.0,0.00018773,2]
[377977375,1754643044236,-5577.14,0.00018773,2]
[377977376,1754643044246,-400.0,0.00018773,2]
[377977377,1754643044255,-1346.04,0.00018773,2]
[377977378,1754643044264,-401.46498438,0.00018773,2]
[377977379,1754643044274,-400.0,0.00018773,2]
[377977380,1754643044283,-471.5,0.00018773,2]
[377977381,1754643044292,-400.0,0.00018773,2]
[377977382,1754643044301,-400.0,0.00018773,2]
[377977383,1754643044311,-400.0,0.00018773,2]
[377977384,1754643044320,-615.64,0.00018773,2]
[377977385,1754643044329,-400.0,0.00018773,2]
[377977386,1754643044339,-400.0,0.00018773,2]
[377977387,1754643044348,-1430.37,0.00018773,2]
[377977388,1754643044357,-890.92,0.00018773,2]
[377977389,1754643044366,-434.5,0.00018773,2]
[377977390,1754643044376,-506.6,0.00018773,2]
[377977391,1754643044385,-400.0,0.00018773,2]
[377977392,1754643044395,-785.27,0.00018773,2]
[377977393,1754643044406,-499.48,0.00018773,2]
[377977394,1754643044417,-1685.2,0.00018773,2]
[377977395,1754643044426,-400.0,0.00018773,2]
[377977396,1754643044435,-400.0,0.00018773,2]
[377977397,1754643044445,-400.0,0.00018773,2]
[377977398,1754643044455,-1766.41,0.00018773,2]
[377977399,1754643044465,-400.0,0.00018773,2]
[377977400,1754643044475,-400.0,0.00018773,2]
[377977401,1754643044485,-400.0,0.00018773,2]
[377977402,1754643044494,-400.0,0.00018773,2]
[377977403,1754643044504,-760.2,0.00018773,2]
[377977404,1754643044515,-400.0,0.00018773,2]
[377977405,1754643044524,-925.82,0.00018773,2]
[377977406,1754643044533,-357.64747752,0.00018773,2]
[377977407,1754643044542,-400.0,0.00018773,2]
[377977408,1754643044552,-400.0,0.00018773,2]
[377977409,1754643044562,-12613.87,0.00018773,2]
[377977410,1754643044571,-421.76,0.00018773,2]
[377977411,1754643044581,-400.0,0.00018773,2]
[377977412,1754643044590,-811.2,0.00018773,2]
[377977413,1754643044600,-907.25,0.00018773,2]
[377977414,1754643044610,-1113.53,0.00018773,2]
[377977415,1754643044620,-400.0,0.00018773,2]
[377977416,1754643044629,-575.71,0.00018773,2]
[377977417,1754643044638,-1133.91,0.00018773,2]
[377977418,1754643044648,-897.71,0.00018773,2]
[377977419,1754643044658,-400.0,0.00018773,2]
[377977420,1754643044671,-427.25,0.00018773,2]
[377977421,1754643044681,-400.0,0.00018773,2]
[377977422,1754643044691,-400.0,0.00018773,2]
[377977423,1754643044700,-400.0,0.00018773,2]
[377977424,1754643044710,-400.0,0.00018773,2]
[377977425,1754643044720,-400.0,0.00018773,2]
[377977426,1754643044729,-400.0,0.00018773,2]
[377977427,1754643044739,-908.86,0.00018773,2]
[377977428,1754643044750,-733.77,0.00018773,2]
[377977429,1754643044759,-400.0,0.00018773,2]
[377977430,1754643044769,-400.0,0.00018773,2]
[377977431,1754643044779,-735.53,0.00018773,2]
[377977432,1754643044788,-964.02,0.00018773,2]
[377977433,1754643044797,-400.0,0.00018773,2]
[377977434,1754643044806,-599.08,0.00018773,2]
[377977435,1754643044816,-400.0,0.00018773,2]
[377977436,1754643044825,-400.0,0.00018773,2]
[377977437,1754643044835,-204.90852532,0.00018774,2]
[377977438,1754643044844,-603.92,0.00018774,2]
[377977439,1754643044854,-400.0,0.00018774,2]
[377977440,1754643044864,-1000.0,0.00018774,2]
[377977441,1754643044873,-470.11,0.00018774,2]
[377977442,1754643044883,-609.06,0.00018774,2]
[377977443,1754643044892,-400.0,0.00018774,2]
[377977444,1754643044901,-400.0,0.00018774,2]
[377977445,1754643044910,-400.0,0.00018774,2]
[377977446,1754643044921,-400.0,0.00018774,2]
[377977447,1754643044931,-500.0,0.00018774,2]
[377977448,1754643044941,-614.4674941,0.00018774,2]
[377977449,1754643044950,-696.12,0.00018774,2]
[377977450,1754643044960,-628.9,0.00018774,2]
[377977451,1754643044970,-490.93,0.00018774,2]
[377977452,1754643044980,-400.0,0.00018774,2]
[377977453,1754643044990,-400.0,0.00018774,2]
[377977454,1754643044999,-448.72,0.00018774,2]
[377977455,1754643045009,-400.0,0.00018774,2]
[377977456,1754643045018,-400.0,0.00018774,2]
[377977457,1754643045027,-400.0,0.00018774,2]
[377977458,1754643045036,-400.0,0.00018774,2]
[377977459,1754643045046,-793.32,0.00018774,2]
[377977460,1754643045055,-415.05,0.00018774,2]
[377977461,1754643045064,-400.0,0.00018774,2]
[377977462,1754643045074,-400.0,0.00018774,2]
[377977463,1754643045083,-400.0,0.00018774,2]
[377977464,1754643045092,-400.0,0.00018774,2]
[377977465,1754643045102,-400.0,0.00018774,2]
[377977466,1754643045111,-400.0,0.00018774,2]
[377977467,1754643045121,-400.0,0.00018774,2]
[377977468,1754643045130,-486.44,0.00018774,2]
[377977469,1754643045140,-400.0,0.00018774,2]
[377977470,1754643045149,-513.8,0.00018774,2]
[377977471,1754643045158,-400.0,0.00018774,2]
[377977472,1754643045168,-400.0,0.00018774,2]
[377977473,1754643045177,-400.0,0.00018774,2]
[377977474,1754643045187,-402.31183422,0.00018774,2]
[377977475,1754643045197,-404.12548062,0.00018774,2]
[377977476,1754643045206,-400.0,0.00018774,2]
[377977477,1754643045215,-785.93,0.00018774,2]
[377977478,1754643045224,-400.0,0.00018774,2]
[377977479,1754643045234,-400.0,0.00018774,2]
[377977480,1754643045243,-400.0,0.00018774,2]
[377977481,1754643045252,-892.47,0.00018774,2]
[377977482,1754643045262,-624.47,0.00018774,2]
[377977483,1754643045271,-400.0,0.00018774,2]
[377977484,1754643045281,-427.03,0.00018774,2]
[377977485,1754643045290,-401.64258735,0.00018774,2]
[377977486,1754643045299,-400.0,0.00018774,2]
[377977487,1754643045309,-500.0,0.00018774,2]
[377977488,1754643045319,-500.0,0.00018774,2]
[377977489,1754643045329,-400.0,0.00018774,2]
[377977490,1754643045339,-400.0,0.00018774,2]
[377977491,1754643045349,-485.28,0.00018774,2]
[377977492,1754643045358,-400.0,0.00018774,2]
[377977493,1754643045367,-400.0,0.00018774,2]
[377977494,1754643045377,-404.4742226,0.00018774,2]
[377977495,1754643045386,-400.0,0.00018774,2]
[377977496,1754643045396,-458.02,0.00018774,2]
[377977497,1754643045406,-400.0,0.00018774,2]
[377977498,1754643045417,-791.29,0.00018774,2]
[377977499,1754643045426,-400.0,0.00018774,2]
[377977500,1754643045435,-400.0,0.00018774,2]
[377977501,1754643045445,-699.0,0.00018774,2]
[377977502,1754643045454,-546.46,0.00018774,2]
[377977503,1754643045463,-400.0,0.00018774,2]
[377977504,1754643045472,-462.33,0.00018774,2]
[377977506,1754643045482,-400.0,0.00018774,2]
[377977508,1754643045491,-400.0,0.00018774,2]
[377977509,1754643045501,-693.33,0.00018774,2]
[377977511,1754643045510,-401.11161262,0.00018774,2]
[377977512,1754643045520,-1618.22,0.00018774,2]
[377977513,1754643045529,-400.0,0.00018774,2]
[377977514,1754643045538,-942.0,0.00018774,2]
[377977515,1754643045548,-500.0,0.00018774,2]
[377977516,1754643045557,-400.0,0.00018774,2]
[377977517,1754643045566,-984.55,0.00018774,2]
[377977518,1754643045576,-400.0,0.00018774,2]
[377977519,1754643045586,-1058.11,0.00018774,2]
[377977520,1754643045595,-993.74,0.00018774,2]
[377977521,1754643045605,-697.97,0.00018774,2]
[377977522,1754643045616,-400.0,0.00018774,2]
[377977523,1754643045625,-1375.88,0.00018774,2]
[377977524,1754643045635,-946.73,0.00018774,2]
[377977525,1754643045644,-400.0,0.00018774,2]
[377977526,1754643045654,-400.0,0.00018774,2]
[377977527,1754643045668,-400.0,0.00018774,2]
[377977528,1754643045682,-452.66,0.00018774,2]
[377977529,1754643045691,-644.37,0.00018774,2]
[377977530,1754643045701,-400.0,0.00018774,2]
[377977531,1754643045710,-400.0,0.00018774,2]
[377977532,1754643045795,-490.38,0.00018774,2]
[377977533,1754643045805,-403.37486901,0.00018774,2]
[377977534,1754643045814,-939.49,0.00018774,2]
[377977535,1754643045823,-400.0,0.00018774,2]
[377977536,1754643045832,-408.1546103,0.00018774,2]
[377977537,1754643045842,-1414.26,0.00018774,2]
[377977538,1754643045851,-509.71,0.00018774,2]
[377977539,1754643045860,-631.03,0.00018774,2]
[377977540,1754643045869,-400.0,0.00018774,2]
[377977541,1754643045878,-400.0,0.00018774,2]
[377977542,1754643045887,-400.0,0.00018774,2]
[377977543,1754643045897,-1008.7,0.00018774,2]
[377977544,1754643045906,-505.55990428,0.00018774,2]
[377977545,1754643045915,-400.0,0.00018774,2]
[377977546,1754643045925,-1724.66,0.00018774,2]
[377977547,1754643045934,-275.41285705,0.00018774,2]
[377977548,1754643045942,-666.23,0.00018774,2]
[377977549,1754643045952,-294.30888186,0.00018774,2]
[377977550,1754643045961,-400.0,0.00018774,2]
[377977551,1754643045970,-881.03,0.00018774,2]
[377977552,1754643045979,-926.63,0.00018774,2]
[377977553,1754643045988,-1133.34,0.00018774,2]
[377977554,1754643045995,-400.0,0.00018774,2]
[377977555,1754643046003,-942.18,0.00018774,2]
[377977556,1754643046012,-839.26,0.00018774,2]
[377977558,1754643046021,-510.89,0.00018774,2]
[377977559,1754643046030,-400.0,0.00018774,2]
[377977561,1754643046039,-400.0,0.00018774,2]
[377977562,1754643046048,-956.42,0.00018774,2]
[377977563,1754643046057,-1900.65,0.00018774,2]
[377977564,1754643046066,-1229.06,0.00018774,2]
[377977565,1754643046075,-803.38,0.00018774,2]
[377977566,1754643046083,-400.0,0.00018774,2]
[377977567,1754643046092,-400.0,0.00018774,2]
[377977568,1754643046102,-1192.72,0.00018774,2]
[377977569,1754643046111,-708.86,0.00018774,2]
[377977570,1754643046120,-1197.75,0.00018774,2]
[377977571,1754643046129,-1187.27,0.00018774,2]
[377977572,1754643046139,-400.0,0.00018774,2]
[377977573,1754643046148,-617.61,0.00018774,2]
[377977574,1754643046157,-1037.4,0.00018774,2]
[377977575,1754643046167,-979.33,0.00018774,2]
[377977576,1754643046177,-400.0,0.00018774,2]
[377977577,1754643046187,-400.0,0.00018774,2]
[377977579,1754643046199,-985.06,0.00018774,2]
[377977580,1754643046209,-520.37,0.00018774,2]
[377977581,1754643046218,-588.99,0.00018774,2]
[377977582,1754643046228,-1182.99,0.00018774,2]
[377977583,1754643046238,-400.0,0.00018774,2]
[377977584,1754643046248,-399.99684908,0.00018774,2]
[377977585,1754643046256,-935.58,0.00018774,2]
[377977586,1754643046265,-1045.37,0.00018774,2]
[377977587,1754643046275,-1302.05,0.00018774,2]
[377977588,1754643046284,-400.0,0.00018774,2]
[377977589,1754643046293,-400.0,0.00018774,2]
[377977590,1754643046302,-1419.18,0.00018774,2]
[377977591,1754643046311,-400.0,0.00018774,2]
[377977592,1754643046320,-1015.63,0.00018774,2]
[377977593,1754643046329,-400.0,0.00018774,2]
[377977594,1754643046338,-855.34,0.00018774,2]
[377977595,1754643046348,-400.0,0.00018774,2]
[377977596,1754643046356,-715.35,0.00018774,2]
[377977597,1754643046366,-804.23,0.00018774,2]
[377977598,1754643046375,-400.0,0.00018774,2]
[377977599,1754643046384,-1137.82,0.00018774,2]
[377977600,1754643046393,-1525.12,0.00018774,2]
[377977601,1754643046402,-413.42,0.00018774,2]
[377977602,1754643046411,-400.0,0.00018774,2]
[377977603,1754643046420,-484.8,0.00018774,2]
[377977604,1754643046429,-400.0,0.00018774,2]
[377977605,1754643046438,-400.0,0.00018774,2]
[377977606,1754643046447,-844.67,0.00018774,2]
[377977607,1754643046457,-1428.63,0.00018774,2]
[377977608,1754643046467,-400.0,0.00018774,2]
[377977609,1754643046475,-400.0,0.00018774,2]
[377977610,1754643046483,-768.55,0.00018774,2]
[377977611,1754643046491,-1272.35,0.00018774,2]
[377977612,1754643046499,-919.91,0.00018774,2]
[377977613,1754643046508,-400.0,0.00018774,2]
[377977614,1754643046517,-1381.78,0.00018774,2]
[377977615,1754643046526,-1341.76,0.00018774,2]
[377977616,1754643046536,-400.0,0.00018774,2]
[377977617,1754643046545,-400.0,0.00018774,2]
[377977618,1754643046554,-1360.39,0.00018774,2]
[377977619,1754643046563,-400.0,0.00018774,2]
[377977620,1754643046573,-400.0,0.00018774,2]
[377977621,1754643046582,-1231.17,0.00018774,2]
[377977622,1754643046592,-1317.85,0.00018774,2]
[377977623,1754643046602,-400.0,0.00018774,2]
[377977624,1754643046611,-481.91284554,0.00018774,2]
[377977625,1754643046622,-400.0,0.00018774,2]
[377977626,1754643046633,-1449.1,0.00018774,2]
[377977627,1754643046643,-1023.27,0.00018774,2]
[377977628,1754643046652,-618.14,0.00018774,2]
[377977629,1754643046665,-819.1,0.00018774,2]
[377977630,1754643046676,-400.0,0.00018774,2]
[377977631,1754643046685,-400.0,0.00018774,2]
[377977632,1754643046694,-1530.0,0.00018774,2]
[377977633,1754643046703,-488.33,0.00018774,2]
[377977634,1754643046713,-1147.39,0.00018774,2]
[377977635,1754643046722,-400.0,0.00018774,2]
[377977636,1754643046732,-1366.15,0.00018774,2]
[377977637,1754643046742,-400.0,0.00018774,2]
[377977638,1754643046753,-856.42,0.00018774,2]